bitfinex/quotes_SOLUSD_20251208
["timestamp","ask_amount","ask_price","bid_price","bid_amount"]
[1765169444691,12.25794441,134.96,134.93,0.72]
[1765169445072,11.56794441,134.96,134.91,7.41212414]
[1765169445273,11.56794441,134.96,134.92,0.72]
[1765169445465,12.25794441,134.96,134.92,0.72]
[1765169446570,12.25794441,134.96,134.92,62.92]
[1765169446773,12.25794441,134.96,134.93,0.72]
[1765169447882,8.10006092,134.96,134.93,0.72]
[1765169449395,8.18,134.95,134.93,0.72]
[1765169451291,15.59024491,134.95,134.93,0.72]
[1765169451483,15.59024491,134.95,134.92,62.2]
[1765169451484,0.67,134.94,134.92,62.2]
[1765169452492,0.67,134.94,134.91,62.91]
[1765169453064,0.67,134.94,134.92,0.71]
[1765169453488,19.7481284,134.95,134.92,0.71]
[1765169453700,20.4181284,134.95,134.92,0.71]
[1765169453988,0.67,134.94,134.92,0.71]
[1765169454198,8.08080754,134.94,134.91,62.91]
[1765169456008,12.23869103,134.94,134.91,62.91]
[1765169456695,10.74047447,134.94,134.91,62.91]
[1765169457074,10.07047447,134.94,134.91,62.2]
[1765169457284,10.07047447,134.94,134.9,62.2]
[1765169457572,8.85,134.93,134.9,0.71]
[1765169457880,11.50966693,134.93,134.9,0.71]
[1765169458088,8.18,134.93,134.9,0.71]
[1765169458470,0.67,134.95,134.9,0.71]
[1765169458697,8.16,134.94,134.91,7.41197184]
[1765169459075,8.16,134.94,134.92,0.71]
[1765169459390,8.83,134.94,134.92,0.71]
[1765169461682,8.16,134.94,134.92,0.71]
[1765169462003,8.83,134.94,134.92,0.71]
[1765169462507,8.83,134.94,134.92,0.69]
[1765169462878,3.30966693,134.93,134.89,0.8375]
[1765169463078,2.65966693,134.91,134.89,0.1475]
[1765169463308,10.83966693,134.91,134.89,0.1475]
[1765169463592,8.18,134.91,134.89,0.1475]
[1765169463782,8.18,134.91,134.89,0.8375]
[1765169465207,8.83,134.91,134.89,0.8375]
[1765169465391,8.83,134.91,134.89,0.1475]
[1765169465775,8.83,134.91,134.89,0.8375]
[1765169466005,7.41289844,134.9,134.89,0.8375]
[1765169466213,10.72256537,134.9,134.89,0.1475]
[1765169474032,8.80994492,134.89,134.88,0.2]
[1765169474200,11.46961185,134.88,134.87,0.2]
[1765169474405,20.29961185,134.88,134.87,0.2]
[1765169474800,10.83966693,134.88,134.87,0.2]
[1765169475119,11.48966693,134.88,134.87,0.2]
[1765169475315,8.83,134.88,134.87,0.2]
[1765169475692,3.30966693,134.88,134.87,0.2]
[1765169475889,18.90366455,134.88,134.87,0.2]
[1765169476224,7.41399762,134.88,134.87,0.2]
[1765169476421,15.59399762,134.88,134.87,0.2]
[1765169476918,18.90366455,134.88,134.87,0.2]
[1765169484116,27.71360947,134.88,134.87,0.2]
[1765169484625,30.68328169,134.88,134.87,0.2]
[1765169485725,30.68328169,134.88,134.87,1e-08]
[1765169485929,46.99214569,134.88,134.87,1e-08]
[1765169488134,9.49994492,134.87,134.83,0.2]
[1765169488320,2.65966693,134.84,134.83,0.2]
[1765169488513,10.83966693,134.84,134.83,0.2]
[1765169490416,18.2558639,134.84,134.83,0.2]
[1765169491336,27.75580882,134.84,134.83,0.2]
[1765169491633,30.72636319,134.84,134.83,0.2]
[1765169494736,47.03522719,134.84,134.83,1e-08]
[1765169495222,46.34522719,134.84,134.83,1e-08]
[1765169496311,47.03522719,134.84,134.83,1e-08]
[1765169499645,43.37467282,134.84,134.83,1e-08]
[1765169501223,35.19467282,134.84,134.83,1e-08]
[1765169501549,18.2558639,134.84,134.83,0.72000001]
[1765169501741,18.2558639,134.84,134.83,1e-08]
[1765169505019,16.308864,134.86,134.83,0.72000001]
[1765169505349,8.18,134.85,134.83,0.72000001]
[1765169508148,3.65967222,134.89,134.83,10.79628521]
[1765169508149,7.4146013,134.87,134.83,10.79628521]
[1765169508350,15.5946013,134.87,134.84,0.72]
[1765169508651,15.5946013,134.87,134.84,3.37966693]
[1765169509049,15.5946013,134.87,134.85,0.72]
[1765169510127,7.41397327,134.89,134.85,3.37966693]
[1765169510324,8.18,134.89,134.86,2.65966693]
[1765169510562,8.18,134.89,134.86,3.37966693]
[1765169510861,8.18,134.89,134.87,0.72]
[1765169511539,15.59346985,134.89,134.87,0.72]
[1765169512152,18.93313678,134.89,134.86,0.71]
[1765169513261,7.41454734,134.87,134.86,0.71]
[1765169513961,7.41454734,134.87,134.83,1e-08]
[1765169514131,8.18,134.86,134.85,0.71]
[1765169514335,11.51966693,134.86,134.83,0.71000001]
[1765169514550,8.18,134.86,134.83,0.71000001]
[1765169515260,15.59554848,134.86,134.83,0.71000001]
[1765169516460,16.27554848,134.86,134.83,0.71000001]
[1765169517030,8.80994492,134.85,134.83,1e-08]
[1765169517237,4.16054026,134.84,134.83,1e-08]
[1765169517563,12.25673723,134.84,134.83,1e-08]
[1765169517858,21.06668215,134.84,134.83,1e-08]
[1765169518764,29.24668215,134.84,134.83,1e-08]
[1765169520658,28.56668215,134.84,134.83,1e-08]
[1765169521253,29.25668215,134.84,134.83,1e-08]
[1765169527579,32.22789849,134.84,134.83,1e-08]
[1765169528280,31.53789849,134.84,134.83,1e-08]
[1765169528582,32.22789849,134.84,134.83,1e-08]
[1765169531584,23.35789849,134.84,134.83,1e-08]
[1765169531772,23.35789849,134.84,134.83,0.67000001]
[1765169531773,24.40614189,134.84,134.83,0.67000001]
[1765169532667,24.40614189,134.84,134.83,1e-08]
[1765169533183,24.40614189,134.84,134.83,0.67000001]
[1765169535399,8.18,134.84,134.83,0.67000001]
[1765169535687,21.50829721,134.86,134.83,0.67000001]
[1765169535688,8.18,134.86,134.83,0.67000001]
[1765169535889,8.18,134.86,134.83,4.83054027]
[1765169536071,8.18,134.86,134.85,4.16054026]
[1765169536591,15.59418575,134.88,134.85,4.83054026]
[1765169536799,15.59418575,134.88,134.86,0.67]
[1765169536993,8.18,134.88,134.86,4.83054026]
[1765169537194,8.18,134.89,134.87,4.16054026]
[1765169537362,8.18,134.89,134.87,4.83054026]
[1765169537563,8.18,134.89,134.88,0.67]
[1765169538280,7.41183352,134.92,134.88,4.83054026]
[1765169538480,8.18,134.91,134.88,4.83054026]
[1765169538684,8.18,134.91,134.89,4.83054026]
[1765169539059,8.18,134.91,134.9,0.67]
[1765169539262,8.18,134.93,134.9,4.83054026]
[1765169539692,8.18,134.93,134.91,0.67]
[1765169539875,15.59145194,134.93,134.91,0.67]
[1765169540679,7.41145194,134.93,134.91,0.67]
[1765169540878,15.59145194,134.93,134.91,0.67]
[1765169544898,8.18,134.93,134.91,4.83054026]
[1765169545473,8.18,134.93,134.92,0.69]
[1765169545884,15.59125027,134.93,134.91,0.69]
[1765169546186,15.59125027,134.93,134.92,0.69]
[1765169550503,8.18,134.93,134.92,0.69]
[1765169551102,8.18,134.93,134.92,4.85054026]
[1765169551302,8.18,134.93,134.92,0.69]
[1765169551803,15.59125027,134.93,134.92,0.69]
[1765169552008,8.18,134.93,134.92,0.69]
[1765169553109,15.59084071,134.94,134.92,0.69]
[1765169554279,7.41084071,134.94,134.92,0.69]
[1765169554482,8.18,134.93,134.92,0.69]
[1765169554691,7.41084071,134.94,134.92,0.69]
[1765169555016,8.18,134.93,134.92,0.69]
[1765169555509,15.59125027,134.93,134.9,4.16054026]
[1765169555812,15.59125027,134.93,134.91,0.69]
[1765169557204,8.18,134.93,134.91,0.69]
[1765169557382,15.59126195,134.93,134.91,0.69]
[1765169557582,4.85054026,134.92,134.88,0.69]
[1765169557807,12.32054026,134.91,134.88,0.69]
[1765169558101,13.01054026,134.91,134.88,0.69]
[1765169558717,7.41289844,134.9,134.88,0.69]
[1765169559602,4.85054026,134.89,134.86,0.69]
[1765169559807,8.16,134.88,134.84,11.57625839]
[1765169559990,8.16,134.88,134.86,0.69]
[1765169561098,8.16,134.88,134.86,0.5293]
[1765169564117,8.16,134.88,134.86,7.94414706]
[1765169564292,8.16,134.89,134.86,7.94414706]
[1765169564491,8.16,134.89,134.87,0.69]
[1765169566301,8.16,134.89,134.87,8.10450444]
[1765169566813,8.16,134.89,134.88,0.69]
[1765169567599,8.16,134.89,134.86,7.4149091]
[1765169567798,8.16,134.89,134.86,0.69]
[1765169567999,12.32054026,134.89,134.85,69.61551748]
[1765169568294,8.16,134.89,134.87,0.69]
[1765169568915,19.73418148,134.89,134.85,69.61551748]
[1765169569115,0.69,134.88,134.85,70.30551748]
[1765169569324,4.85054026,134.88,134.85,70.30551748]
[1765169569633,4.16054026,134.88,134.86,0.69]
[1765169570003,11.57457807,134.88,134.86,0.69]
[1765169571129,4.16054026,134.87,134.84,0.67]
[1765169571420,4.16054026,134.87,134.83,16.30886401]
[1765169571421,12.23457807,134.88,134.85,0.67]
[1765169577431,11.57457807,134.88,134.85,0.67]
[1765169578837,10.07610629,134.88,134.85,0.67]
[1765169579738,7.41403781,134.88,134.85,0.67]
[1765169580037,8.18,134.88,134.85,8.08534547]
[1765169580214,8.18,134.88,134.85,70.28534547]
[1765169580415,8.18,134.88,134.86,0.72]
[1765169581730,8.18,134.88,134.86,8.1348735]
[1765169582036,8.18,134.88,134.87,0.72]
[1765169583615,8.18,134.88,134.86,8.1348735]
[1765169584356,10.84206848,134.88,134.85,69.61548282]
[1765169584640,10.84206848,134.88,134.85,62.92]
[1765169584641,2.66206848,134.87,134.85,62.92]
[1765169584863,2.66206848,134.86,134.83,69.61640481]
[1765169585137,8.18,134.85,134.83,70.33640481]
[1765169585539,8.18,134.85,134.84,0.72]
[1765169586438,8.18,134.85,134.84,8.13619697]
[1765169587046,8.18,134.85,134.84,0.72]
[1765169587222,8.18,134.85,134.83,69.61670362]
[1765169587417,8.18,134.85,134.83,70.33670362]
[1765169587741,8.18,134.85,134.84,0.72]
[1765169590144,8.18,134.85,134.83,0.72000001]
[1765169591545,0.71,134.84,134.83,1e-08]
[1765169591843,3.37206848,134.84,134.83,1e-08]
[1765169592742,10.07826545,134.84,134.83,1e-08]
[1765169596349,10.78826545,134.84,134.83,1e-08]
[1765169598342,7.41619697,134.84,134.83,0.72000001]
[1765169598548,15.59619697,134.84,134.83,1e-08]
[1765169599135,37.05880282,134.93,134.83,3.38206849]
[1765169599442,8.18,134.9,134.86,2.66206848]
[1765169599644,11.55206848,134.9,134.84,3.38206848]
[1765169600138,11.55206848,134.9,134.85,0.72]
[1765169600449,15.59301946,134.9,134.85,10.79769472]
[1765169600630,16.30301946,134.9,134.85,10.79769472]
[1765169600827,16.30301946,134.9,134.86,0.72]
[1765169601546,18.96508794,134.9,134.86,0.72]
[1765169601747,7.41301946,134.9,134.86,0.72]
[1765169601943,15.59301946,134.9,134.86,0.72]
[1765169602426,0.68,134.91,134.86,10.7970412]
[1765169602633,8.18,134.91,134.86,10.7970412]
[1765169602828,8.18,134.91,134.87,3.34206848]
[1765169603332,8.18,134.91,134.88,0.68]
[1765169605031,15.59244961,134.91,134.88,0.68]
[1765169606245,18.25451809,134.91,134.86,7.41509713]
[1765169606449,0.68,134.9,134.87,0.68]
[1765169606653,3.34206848,134.9,134.87,0.68]
[1765169607839,15.59244961,134.91,134.87,8.0944757]
[1765169607840,15.59252133,134.91,134.87,8.0944757]
[1765169608359,15.59252133,134.91,134.88,0.68]
[1765169610056,3.34206848,134.9,134.87,62.2]
[1765169610353,18.25458981,134.91,134.87,62.2]
[1765169610662,18.93458981,134.91,134.88,0.68]
[1765169612656,8.09309207,134.9,134.87,62.88]
[1765169612971,10.07516055,134.9,134.88,0.68]
[1765169613737,7.41309207,134.9,134.88,0.68]
[1765169613939,10.75516055,134.9,134.87,62.2]
[1765169614274,10.75516055,134.9,134.87,0.68]
[1765169616068,8.09309207,134.9,134.87,0.68]
[1765169616366,15.59235756,134.91,134.87,0.68]
[1765169617157,16.27235756,134.91,134.87,0.68]
[1765169617639,16.27235756,134.91,134.87,8.09437311]
[1765169617842,16.27235756,134.91,134.88,0.68]
[1765169618162,15.59235756,134.91,134.87,7.41437311]
[1765169618466,0.68,134.9,134.87,0.68]
[1765169619254,18.93442604,134.91,134.87,0.68]
[1765169621363,18.25442604,134.91,134.87,0.68]
[1765169621667,0.68,134.9,134.87,0.68]
[1765169622559,8.09316997,134.9,134.87,0.68]
[1765169622955,0.68,134.89,134.87,0.68]
[1765169623260,0.68,134.89,134.86,0.68]
[1765169623556,8.09316997,134.9,134.86,0.68]
[1765169626277,0.1,135.0,134.89,5.32413696]
[1765169626577,15.58905386,134.97,134.93,2.66206848]
[1765169626755,15.58905386,134.97,134.92,10.07384353]
[1765169627157,16.26905386,134.97,134.93,0.68]
[1765169627753,18.93112234,134.97,134.93,0.68]
[1765169627965,16.26905386,134.97,134.93,3.34206848]
[1765169628478,0.68,134.96,134.92,2.66206848]
[1765169628655,0.68,134.96,134.92,3.34206848]
[1765169629367,8.08997482,134.96,134.92,3.34206848]
[1765169629564,8.08997482,134.96,134.92,0.68]
[1765169629768,0.68,134.95,134.92,0.68]
[1765169629968,7.40997482,134.96,134.92,3.34206848]
[1765169630172,15.58919415,134.97,134.93,2.66206848]
[1765169630362,16.26919415,134.97,134.93,3.34206848]
[1765169630563,16.26919415,134.97,134.94,0.68]
[1765169630967,8.18,134.97,134.94,0.68]
[1765169631171,7.50859763,134.98,134.94,3.34206848]
[1765169631172,0.1,134.98,134.94,3.34206848]
[1765169631379,0.1,134.98,134.95,0.67]
[1765169631759,3.47206848,134.98,134.93,10.74280728]
[1765169631956,2.66206848,134.97,134.93,8.0807388]
[1765169632269,3.37206848,134.97,134.93,8.0807388]
[1765169632469,0.71,134.96,134.93,8.0807388]
[1765169632878,2.66206848,134.97,134.94,0.67]
[1765169632879,7.40921282,134.97,134.94,0.67]
[1765169633069,8.11921282,134.97,134.94,0.67]
[1765169633477,8.18,134.96,134.94,0.67]
[1765169633957,34.8238766,134.96,134.91,0.67]
[1765169634160,3.37206848,134.95,134.91,0.67]
[1765169634359,3.37206848,134.95,134.9,70.28270053]
[1765169634592,0.71,134.94,134.91,0.67]
[1765169635384,8.12089354,134.94,134.91,0.67]
[1765169637583,10.78296202,134.94,134.9,0.68]
[1765169637762,0.72,134.93,134.9,0.68]
[1765169638558,10.07296202,134.94,134.9,0.68]
[1765169638769,8.18,134.93,134.9,0.68]
[1765169641993,8.18,134.93,134.9,12.24837664]
[1765169642616,8.18,134.93,134.91,0.68]
[1765169647016,8.18,134.93,134.91,8.09220177]
[1765169647186,8.9,134.93,134.91,7.41220177]
[1765169647392,8.18,134.93,134.91,8.09220177]
[1765169648410,8.18,134.93,134.9,66.35574857]
[1765169648411,21.19433917,134.98,134.92,12.24746062]
[1765169648592,8.16,134.97,134.94,4.15574857]
[1765169649006,8.16,134.97,134.95,0.68]
[1765169651011,8.16,134.97,134.95,8.09007217]
[1765169651409,8.16,134.97,134.95,7.41007217]
[1765169651593,8.16,134.97,134.96,0.68]
[1765169652401,0.1,134.98,134.96,12.24517568]
[1765169652808,0.1,134.98,134.97,4.83574857]
[1765169654219,0.1,134.98,134.97,12.24480243]
[1765169663403,0.1,134.98,134.97,74.44480243]
[1765169669814,0.1,134.98,134.97,83.25474735]
[1765169670014,0.1,134.98,134.97,98.91366643]
[1765169670215,0.1,134.98,134.97,107.72361135]
[1765169670731,0.1,134.98,134.97,98.91366643]
[1765169673337,0.1,134.98,134.97,107.72361135]
[1765169674342,0.1,134.98,134.97,86.59791786]
[1765169674517,0.1,134.98,134.97,11.56480243]
[1765169674717,0.82,134.98,134.97,7.40905386]
[1765169675239,0.1,134.98,134.97,7.40905386]
[1765169678835,0.1,134.98,134.97,28.58366643]
[1765169680540,0.1,134.98,134.97,90.78366643]
[1765169681045,0.1,134.98,134.97,99.59361135]
[1765169682819,1e-08,134.98,134.97,99.59361135]
[1765169683136,1e-08,134.98,134.97,83.28474735]
[1765169684344,1e-08,134.98,134.97,21.08474735]
[1765169684547,1e-08,134.98,134.92,8.10878892]
[1765169684548,4.87574858,134.98,134.92,8.10878892]
[1765169684742,4.15574857,134.97,134.91,4.86574857]
[1765169685048,4.15574857,134.97,134.92,7.41139672]
[1765169685049,4.87574857,134.97,134.92,7.41139672]
[1765169685241,0.72,134.96,134.92,7.41139672]
[1765169685742,4.87574857,134.96,134.92,7.41139672]
[1765169686046,4.87574857,134.96,134.91,25.94321588]
[1765169686230,0.72,134.95,134.91,25.94321588]
[1765169686426,4.87574857,134.95,134.91,25.94321588]
[1765169686830,0.72,134.94,134.91,25.94321588]
[1765169687424,4.87574857,134.94,134.9,7.41280446]
[1765169688047,0.72,134.93,134.9,7.41280446]
[1765169688959,0.72,134.93,134.9,0.71]
[1765169689247,4.15574857,134.96,134.91,0.71]
[1765169689427,0.72,134.95,134.91,0.71]
[1765169689622,0.72,134.95,134.91,62.91]
[1765169690648,0.72,134.95,134.91,70.3219963]
[1765169690828,0.72,134.95,134.91,69.6119963]
[1765169691029,4.87574857,134.95,134.91,69.6119963]
[1765169691754,0.68,134.94,134.91,69.6119963]
[1765169693046,0.68,134.94,134.91,70.3219963]
[1765169693421,0.68,134.94,134.91,69.6119963]
[1765169693621,4.83574857,134.94,134.91,62.2]
[1765169694040,0.68,134.93,134.91,62.2]
[1765169694748,0.68,134.95,134.92,8.12179958]
[1765169694926,4.83574857,134.95,134.92,7.41179958]
[1765169695441,0.68,134.94,134.92,7.41179958]
[1765169697251,4.83574857,134.94,134.92,62.2]
[1765169697755,0.72,134.93,134.92,62.2]
[1765169699145,4.15574857,134.95,134.92,62.2]
[1765169699550,0.72,134.94,134.92,62.2]
[1765169701532,0.72,134.94,134.92,69.61178025]
[1765169701955,0.72,134.94,134.91,70.29214698]
[1765169702151,0.72,134.94,134.91,69.61214698]
[1765169702337,0.72,134.94,134.91,70.29214698]
[1765169704027,3.37926561,134.94,134.91,69.61214698]
[1765169704643,3.37926561,134.94,134.91,70.29214698]
[1765169707663,2.65926561,134.94,134.91,70.29214698]
[1765169707865,0.72,134.93,134.91,69.61214698]
[1765169708034,0.72,134.93,134.91,70.29214698]
[1765169708235,2.65926561,134.94,134.91,70.29214698]
[1765169708436,3.37926561,134.94,134.91,70.29214698]
[1765169710361,10.06960156,134.95,134.91,69.61214698]
[1765169710540,2.65926561,134.96,134.92,0.68]
[1765169710861,3.37926561,134.97,134.92,62.88]
[1765169711048,0.72,134.97,134.92,65.53926561]
[1765169711250,0.72,134.97,134.93,0.68]
[1765169711453,1e-08,134.98,134.93,65.53926561]
[1765169711657,1e-08,134.98,134.94,8.18]
[1765169711858,1e-08,134.98,134.95,0.68]
[1765169713148,0.72000001,134.98,134.95,0.68]
[1765169716869,1e-08,134.98,134.95,62.88]
[1765169717345,8.12870232,134.98,134.95,62.2]
[1765169717548,2.65926561,134.97,134.95,62.2]
[1765169717748,3.37926561,134.97,134.95,62.2]
[1765169718055,0.72,134.96,134.95,62.2]
[1765169718765,3.37926561,134.96,134.95,62.2]
[1765169719465,1e-08,134.98,134.95,10.74926883]
[1765169719644,1e-08,134.98,134.96,3.33926561]
[1765169719844,1e-08,134.98,134.97,2.65926561]
[1765169720542,1e-08,134.98,134.97,3.33926561]
[1765169721068,1e-08,134.98,134.97,72.94831947]
[1765169721400,1e-08,134.98,134.97,10.74831947]
[1765169724973,1e-08,134.98,134.97,10.06831947]
[1765169725180,1e-08,134.98,134.96,18.24884426]
[1765169725467,1e-08,134.98,134.96,18.94884426]
[1765169725678,1e-08,134.98,134.96,10.76884426]
[1765169725841,0.70000001,134.98,134.96,7.40957865]
[1765169726773,1e-08,134.98,134.96,8.10957865]
[1765169727065,1e-08,134.98,134.96,7.40957865]
[1765169727367,0.70000001,134.98,134.95,10.06924156]
[1765169727548,0.70000001,134.98,134.94,8.18]
[1765169727549,0.70000001,134.98,134.94,2.65926561]
[1765169728058,0.70000001,134.98,134.94,10.76959937]
[1765169728361,0.70000001,134.98,134.95,8.11014578]
[1765169729574,0.70000001,134.98,134.95,7.41014578]
[1765169730252,0.70000001,134.98,134.95,8.11014578]
[1765169734968,0.70000001,134.98,134.95,7.41014578]
[1765169735161,0.70000001,134.98,134.95,8.11014578]
[1765169735479,1e-08,134.98,134.96,0.7]
[1765169736955,1e-08,134.98,134.96,8.10910272]
[1765169737278,1e-08,134.98,134.96,72.96836833]
[1765169737982,1e-08,134.98,134.97,10.76831947]
[1765169738462,1e-08,134.98,134.97,18.94831947]
[1765169739958,1e-08,134.98,134.97,89.95826439]
[1765169755481,0.1,135.0,134.99,2.65926561]
[1765169755776,0.1,135.0,134.99,64.8592656]
[1765169755973,0.1,135.0,134.99,65.5392656]
[1765169756800,0.1,135.0,134.99,72.94722174]
[1765169757016,0.8,135.0,134.99,69.60795613]
[1765169757193,0.1,135.0,134.99,69.60795613]
[1765169757378,0.1,135.0,134.99,72.26722174]
[1765169757719,0.1,135.0,134.99,72.94722174]
[1765169758503,0.1,135.0,134.99,69.60795613]
[1765169758686,0.76,135.0,134.99,69.60795613]
[1765169761698,0.76,135.0,134.99,62.19999999]
[1765169762789,0.1,135.0,134.99,62.19999999]
[1765169762990,0.1,135.0,134.99,69.60795613]
[1765169764715,0.76,135.0,134.99,69.60795613]
[1765169767216,0.76,135.0,134.99,7.40795614]
[1765169769235,0.76,135.0,134.97,74.53036953]
[1765169769519,0.76,135.0,134.97,62.19999999]
[1765169770195,0.76,135.0,134.97,69.60883423]
[1765169770413,0.1,135.0,134.99,4.15036954]
[1765169770901,0.1,135.0,134.99,83.32923353]
[1765169771996,0.1,135.0,134.99,98.89718967]
[1765169776118,0.1,135.03,135.02,16.308864]
[1765169776315,0.1,135.03,135.02,90.81923353]
[1765169776505,0.1,135.03,135.02,100.29917845]
[1765169778024,1e-08,135.03,135.02,107.70548862]
[1765169780929,1e-08,135.03,135.02,103.55511908]
[1765169781110,1e-08,135.03,135.02,107.70548862]
[1765169781312,1e-08,135.03,135.02,98.8955437]
[1765169782134,1e-08,135.03,135.02,36.69554371]
[1765169782333,1e-08,135.03,135.02,45.50548863]
[1765169788038,1e-08,135.03,135.02,107.70548862]
[1765169794041,0.1,135.04,135.03,71.0099449]
[1765169794342,0.1,135.04,135.03,75.87031444]
[1765169796045,0.1,135.04,135.03,83.27607612]
[1765169796244,0.1,135.05,135.03,87.42644566]
[1765169796560,0.1,135.05,135.04,21.83031446]
[1765169797427,0.1,135.05,135.04,84.03031444]
[1765169798655,1e-08,135.05,135.04,91.43552771]
[1765169800832,1e-08,135.05,135.04,107.74439171]
[1765169801550,1e-08,135.07,135.06,78.50886397]
[1765169801755,1e-08,135.07,135.06,192.61923351]
[1765169801949,1e-08,135.07,135.06,193.32923351]
[1765169802638,1e-08,135.07,135.06,200.73335019]
[1765169803150,1e-08,135.07,135.06,200.02335019]
[1765169805244,0.66000001,135.07,135.06,98.22335019]
[1765169806638,1e-08,135.07,135.06,98.22335019]
[1765169811236,1e-08,135.07,135.06,107.70329511]
[1765169813653,1e-08,135.07,135.06,107.03329511]
[1765169814255,1e-08,135.07,135.06,107.70329511]
[1765169818350,0.1,135.09,135.08,4.15036954]
[1765169818857,0.1,135.09,135.08,21.84031446]
[1765169820457,0.79,135.09,135.08,15.56302043]
[1765169821758,0.79,135.09,135.07,69.60350102]
[1765169822136,0.79,135.09,135.08,7.40302043]
[1765169823481,0.1,135.09,135.08,10.056001]
[1765169823668,0.1,135.09,135.08,18.216001]
[1765169825147,0.79,135.09,135.08,18.216001]
[1765169825367,0.1,135.09,135.08,18.216001]
[1765169826443,0.79,135.09,135.08,18.216001]
[1765169826737,0.79,135.09,135.08,80.41600096]
[1765169832795,0.1,135.09,135.08,81.13600096]
[1765169833009,0.1,135.09,135.08,106.25480988]
[1765169833471,0.1,135.11,135.1,25.11880892]
[1765169833671,0.1,135.11,135.1,36.65178949]
[1765169834273,0.1,135.11,135.1,27.12184457]
[1765169834697,0.1,135.11,135.1,34.52376907]
[1765169835199,0.1,135.11,135.1,31.8707885]
[1765169835372,0.1,135.11,135.1,34.52376907]
[1765169835964,0.1,135.11,135.1,35.24376907]
[1765169838294,0.1,135.11,135.1,34.52376907]
[1765169838473,1e-08,135.11,135.1,106.25371395]
[1765169838677,1e-08,135.11,135.1,108.90669452]
[1765169838983,1e-08,135.12,135.11,0.72]
[1765169839178,1e-08,135.12,135.11,65.57298053]
[1765169840567,1e-08,135.12,135.11,72.97435718]
[1765169841199,0.69000001,135.12,135.11,69.60137661]
[1765169844372,0.69000001,135.12,135.11,72.25435718]
[1765169847395,0.69000001,135.12,135.11,69.60137661]
[1765169848769,0.69000001,135.12,135.1,94.070652]
[1765169848971,0.69000001,135.12,135.1,85.910652]
[1765169850402,1e-08,135.12,135.11,10.05435722]
[1765169850590,0.69000001,135.12,135.11,7.40137665]
[1765169851174,1e-08,135.12,135.11,7.40137665]
[1765169851382,1e-08,135.12,135.11,10.72435722]
[1765169851582,1e-08,135.12,135.11,10.05435722]
[1765169851893,0.69000001,135.12,135.11,7.40137665]
[1765169853282,1e-08,135.12,135.11,72.25435718]
[1765169858202,1e-08,135.12,135.11,69.60137661]
[1765169858393,1e-08,135.12,135.11,72.25435718]
[1765169858592,1e-08,135.12,135.11,72.92435718]
[1765169859200,1e-08,135.12,135.11,75.88699096]
[1765169860993,1e-08,135.12,135.11,84.69693588]
[1765169861394,1e-08,135.12,135.11,22.49693592]
[1765169861615,1e-08,135.12,135.11,30.65693592]
[1765169862488,1e-08,135.12,135.11,195.65693587]
[1765169862810,0.1,135.14,135.13,16.308864]
[1765169863014,0.1,135.14,135.13,34.52212578]
[1765169863226,0.1,135.14,135.13,35.19212578]
[1765169863385,0.1,135.14,135.13,54.15133898]
[1765169866488,0.1,135.14,135.13,53.48133898]
[1765169866895,0.1,135.14,135.13,54.15133898]
[1765169868217,0.1,135.14,135.13,116.35133894]
[1765169869218,0.1,135.14,135.13,104.21841345]
[1765169869416,0.79,135.14,135.13,79.74954945]
[1765169869600,0.79,135.14,135.13,69.60028117]
[1765169870030,0.79,135.14,135.13,7.40028121]
[1765169876320,0.79,135.14,135.13,10.05326178]
[1765169878719,0.79,135.14,135.13,7.40028121]
[1765169880125,0.79,135.14,135.13,69.60028121]
[1765169884927,0.79,135.14,135.13,62.2]